[Event "Kvibergspelen 2018"]
[Site "Prioritet Serneke Arena, Krutvagen 2, Gothenburg, Sweden"]
[Date "2018.04.20"]
[Round "2.17"]
[White "Torngren, Gustav"]
[Black "Ask, Josef"]
[Result "1/2-1/2"]
[TimeControl "15 minutes + 5 seconds per move from move one (Round 1 - 4) / 90 minutes + 30 seconds per move from move one (Round 5 - 8)"]
[BlackTitle "FM"]
[WhiteFideId "1728970"]
[BlackFideId "1704583"]
[WhiteElo "1906"]
[BlackElo "2173"]

1. d4 {[%clk 00:15:08]} {[%emt 00:00:02]} Nf6 {[%clk 00:15:09]} {[%emt
00:00:01]} 2. c4 {[%clk 00:15:12]} {[%emt 00:00:02]} g6 {[%clk 00:15:13]} 3.
Nc3 {[%clk 00:15:16]} {[%emt 00:00:02]} Bg7 {[%clk 00:15:16]} {[%emt 00:00:01]}
4. e4 {[%clk 00:15:20]} d6 {[%clk 00:15:21]} 5. Nf3 {[%clk 00:15:24]} {[%emt
00:00:03]} O-O {[%clk 00:15:24]} {[%emt 00:00:02]} 6. Be2 {[%clk 00:15:28]}
{[%emt 00:00:01]} e5 {[%clk 00:15:28]} 7. O-O {[%clk 00:15:31]} {[%emt
00:00:02]} exd4 {[%clk 00:15:32]} {[%emt 00:00:02]} 8. Nxd4 {[%clk 00:15:35]}
{[%emt 00:00:01]} Re8 {[%clk 00:15:35]} 9. f3 {[%clk 00:15:37]} {[%emt
00:00:03]} c6 {[%clk 00:15:38]} {[%emt 00:00:02]} 10. Be3 {[%clk 00:15:39]}
{[%emt 00:00:02]} d5 {[%clk 00:15:40]} {[%emt 00:00:03]} 1/2-1/2

[Event "Kvibergspelen 2018"]
[Site "Prioritet Serneke Arena, Krutvagen 2, Gothenburg, Sweden"]
[Date "2018.04.20"]
[Round "2.18"]
[White "Cramling, Anna"]
[Black "Dahlstrom, Rickard"]
[Result "1/2-1/2"]
[TimeControl "15 minutes + 5 seconds per move from move one (Round 1 - 4) / 90 minutes + 30 seconds per move from move one (Round 5 - 8)"]
[WhiteTitle "WFM"]
[WhiteFideId "32009232"]
[BlackFideId "1702050"]
[WhiteElo "2168"]
[BlackElo "1998"]

1. d4 {[%clk 00:15:07]} {[%emt 00:00:02]} d5 {[%clk 00:15:09]} {[%emt
00:00:01]} 2. c4 {[%clk 00:15:11]} {[%emt 00:00:01]} c6 {[%clk 00:15:13]}
{[%emt 00:00:01]} 3. Nc3 {[%clk 00:15:07]} {[%emt 00:00:09]} Nf6 {[%clk
00:15:17]} {[%emt 00:00:02]} 4. Nf3 {[%clk 00:15:07]} {[%emt 00:00:04]} a6
{[%clk 00:15:20]} {[%emt 00:00:02]} 5. cxd5 {[%clk 00:13:13]} {[%emt 00:01:59]}
cxd5 {[%clk 00:15:23]} {[%emt 00:00:02]} 6. Bf4 {[%clk 00:13:09]} {[%emt
00:00:08]} Nc6 {[%clk 00:15:23]} {[%emt 00:00:06]} 7. e3 {[%clk 00:13:11]}
{[%emt 00:00:03]} Bf5 {[%clk 00:14:20]} {[%emt 00:01:08]} 8. Rc1 {[%clk
00:12:52]} {[%emt 00:00:24]} e6 {[%clk 00:14:21]} {[%emt 00:00:05]} 9. Be2
{[%clk 00:11:22]} {[%emt 00:01:35]} Bd6 {[%clk 00:13:53]} {[%emt 00:00:32]} 10.
Bxd6 {[%clk 00:10:42]} {[%emt 00:00:45]} Qxd6 {[%clk 00:13:57]} {[%emt
00:00:02]} 11. O-O {[%clk 00:10:23]} {[%emt 00:00:24]} O-O {[%clk 00:13:46]}
{[%emt 00:00:16]} 12. Na4 {[%clk 00:09:16]} {[%emt 00:01:12]} Nd7 {[%clk
00:12:09]} {[%emt 00:01:41]} 13. Nc5 {[%clk 00:07:27]} {[%emt 00:01:54]} Nxc5
{[%clk 00:11:27]} {[%emt 00:00:48]} 14. dxc5 {[%clk 00:07:30]} {[%emt
00:00:01]} Qc7 {[%clk 00:11:25]} {[%emt 00:00:05]} 15. Nd4 {[%clk 00:07:31]}
{[%emt 00:00:06]} Bg6 {[%clk 00:11:20]} {[%emt 00:00:10]} 16. Nxc6 {[%clk
00:05:38]} {[%emt 00:01:58]} bxc6 {[%clk 00:11:12]} {[%emt 00:00:13]} 17. Rc3
{[%clk 00:04:55]} {[%emt 00:00:48]} Rfb8 {[%clk 00:10:10]} {[%emt 00:01:07]} 18.
Qd2 {[%clk 00:02:36]} {[%emt 00:02:24]} Qa5 {[%clk 00:09:26]} {[%emt 00:00:48]}
19. a3 {[%clk 00:02:41]} {[%emt 00:00:01]} Ra7 {[%clk 00:08:24]} {[%emt
00:01:07]} 20. b4 {[%clk 00:02:01]} {[%emt 00:00:45]} Qc7 {[%clk 00:08:24]}
{[%emt 00:00:05]} 21. Bd3 {[%clk 00:01:30]} {[%emt 00:00:35]} Bxd3 {[%clk
00:07:52]} {[%emt 00:00:37]} 22. Rxd3 {[%clk 00:01:33]} {[%emt 00:00:02]} a5
{[%clk 00:07:52]} {[%emt 00:00:05]} 23. e4 {[%clk 00:01:00]} {[%emt 00:00:38]}
axb4 {[%clk 00:07:48]} {[%emt 00:00:10]} 24. axb4 {[%clk 00:01:03]} {[%emt
00:00:01]} Ra4 {[%clk 00:07:47]} {[%emt 00:00:05]} 25. exd5 {[%clk 00:01:00]}
{[%emt 00:00:08]} exd5 {[%clk 00:07:50]} {[%emt 00:00:03]} 26. Re1 {[%clk
00:00:51]} {[%emt 00:00:14]} h6 {[%clk 00:07:44]} {[%emt 00:00:11]} 27. b5
{[%clk 00:00:52]} {[%emt 00:00:04]} Rxb5 {[%clk 00:07:30]} {[%emt 00:00:19]} 28.
Re8+ {[%clk 00:00:22]} {[%emt 00:00:35]} Kh7 {[%clk 00:07:34]} {[%emt
00:00:02]} 29. Qc2 {[%clk 00:00:26]} {[%emt 00:00:01]} Re4 {[%clk 00:06:52]}
{[%emt 00:00:47]} 30. Rxe4 {[%clk 00:00:11]} {[%emt 00:00:21]} dxe4 {[%clk
00:06:56]} {[%emt 00:00:01]} 31. Rd4 {[%clk 00:00:12]} {[%emt 00:00:03]} f5
{[%clk 00:06:51]} {[%emt 00:00:09]} 32. f3 {[%clk 00:00:12]} {[%emt 00:00:05]}
Qe5 {[%clk 00:06:54]} {[%emt 00:00:02]} 33. Rc4 {[%clk 00:00:09]} {[%emt
00:00:08]} e3 {[%clk 00:06:26]} {[%emt 00:00:33]} 34. Qc1 {[%clk 00:00:09]}
{[%emt 00:00:05]} Rb2 {[%clk 00:06:08]} {[%emt 00:00:23]} 35. Kf1 {[%clk
00:00:11]} {[%emt 00:00:04]} Ra2 {[%clk 00:05:56]} {[%emt 00:00:16]} 36. Rb4
{[%clk 00:00:07]} {[%emt 00:00:08]} Ra1 {[%clk 00:05:53]} {[%emt 00:00:08]} 37.
Rb1 {[%clk 00:00:11]} {[%emt 00:00:01]} Rxb1 {[%clk 00:05:46]} {[%emt
00:00:12]} 38. Qxb1 {[%clk 00:00:15]} Qxc5 {[%clk 00:05:50]} {[%emt 00:00:02]}
39. Ke2 {[%clk 00:00:10]} {[%emt 00:00:10]} g6 {[%clk 00:05:48]} {[%emt
00:00:07]} 40. Qa2 {[%clk 00:00:10]} {[%emt 00:00:06]} Qe7 {[%clk 00:05:45]}
{[%emt 00:00:07]} 41. Qc4 {[%clk 00:00:10]} {[%emt 00:00:05]} c5 {[%clk
00:05:45]} {[%emt 00:00:05]} 42. Qd3 {[%clk 00:00:07]} {[%emt 00:00:08]} f4
{[%clk 00:05:47]} {[%emt 00:00:03]} 43. g3 {[%clk 00:00:09]} {[%emt 00:00:03]}
Qc7 {[%clk 00:05:05]} {[%emt 00:00:48]} 44. gxf4 {[%clk 00:00:07]} {[%emt
00:00:07]} Qxf4 {[%clk 00:05:09]} {[%emt 00:00:01]} 45. Qd7 {[%clk 00:00:10]}
{[%emt 00:00:01]} Kg8 {[%clk 00:05:09]} {[%emt 00:00:03]} 46. Qe8+ {[%clk
00:00:14]} {[%emt 00:00:03]} Kg7 {[%clk 00:05:11]} {[%emt 00:00:03]} 47. Qe7+
{[%clk 00:00:16]} {[%emt 00:00:04]} Qf7 {[%clk 00:05:11]} {[%emt 00:00:04]} 48.
Qxc5 {[%clk 00:00:18]} {[%emt 00:00:03]} Qa2+ {[%clk 00:05:11]} {[%emt
00:00:05]} 49. Kxe3 {[%clk 00:00:21]} {[%emt 00:00:02]} Qxh2 {[%clk 00:05:12]}
{[%emt 00:00:04]} 50. Qe7+ {[%clk 00:00:24]} {[%emt 00:00:03]} Kg8 {[%clk
00:05:15]} {[%emt 00:00:02]} 51. Qe8+ {[%clk 00:00:26]} {[%emt 00:00:03]}
1/2-1/2

[Event "Kvibergspelen 2018"]
[Site "Prioritet Serneke Arena, Krutvagen 2, Gothenburg, Sweden"]
[Date "2018.04.20"]
[Round "2.19"]
[White "Myrene, Jon Kare"]
[Black "Wengholm, Anders"]
[Result "0-1"]
[TimeControl "15 minutes + 5 seconds per move from move one (Round 1 - 4) / 90 minutes + 30 seconds per move from move one (Round 5 - 8)"]
[WhiteFideId "1510258"]
[BlackFideId "1704818"]
[WhiteElo "1886"]
[BlackElo "2158"]

1. e4 {[%clk 00:15:08]} {[%emt 00:00:03]} c5 {[%clk 00:15:08]} {[%emt
00:00:06]} 2. Nf3 {[%clk 00:15:08]} {[%emt 00:00:04]} d6 {[%clk 00:15:12]}
{[%emt 00:00:02]} 3. d4 {[%clk 00:15:07]} {[%emt 00:00:06]} cxd4 {[%clk
00:15:14]} {[%emt 00:00:03]} 4. Nxd4 {[%clk 00:15:10]} {[%emt 00:00:01]} Nf6
{[%clk 00:15:18]} {[%emt 00:00:02]} 5. Nc3 {[%clk 00:15:13]} {[%emt 00:00:03]}
e6 {[%clk 00:15:21]} {[%emt 00:00:02]} 6. Bc4 {[%clk 00:14:57]} {[%emt
00:00:21]} Be7 {[%clk 00:15:21]} {[%emt 00:00:04]} 7. Be3 {[%clk 00:14:45]}
{[%emt 00:00:17]} O-O {[%clk 00:15:20]} {[%emt 00:00:06]} 8. f3 {[%clk
00:14:40]} {[%emt 00:00:10]} d5 {[%clk 00:14:36]} {[%emt 00:00:50]} 9. exd5
{[%clk 00:14:01]} {[%emt 00:00:44]} Nxd5 {[%clk 00:14:38]} {[%emt 00:00:02]} 10.
Nxd5 {[%clk 00:11:55]} {[%emt 00:02:12]} exd5 {[%clk 00:14:42]} {[%emt
00:00:02]} 11. Bb3 {[%clk 00:11:52]} {[%emt 00:00:07]} Nc6 {[%clk 00:14:21]}
{[%emt 00:00:26]} 12. O-O {[%clk 00:11:21]} {[%emt 00:00:36]} Re8 {[%clk
00:13:44]} {[%emt 00:00:41]} 13. Kh1 {[%clk 00:10:22]} {[%emt 00:01:04]} Bf6
{[%clk 00:13:13]} {[%emt 00:00:36]} 14. Qd2 {[%clk 00:09:50]} {[%emt 00:00:37]}
Rxe3 {[%clk 00:08:42]} {[%emt 00:04:37]} 15. Nxc6 {[%clk 00:09:32]} {[%emt
00:00:22]} bxc6 {[%clk 00:08:45]} {[%emt 00:00:02]} 16. Qxe3 {[%clk 00:09:14]}
{[%emt 00:00:23]} Bxb2 {[%clk 00:08:48]} {[%emt 00:00:02]} 17. Rae1 {[%clk
00:08:52]} {[%emt 00:00:27]} Be6 {[%clk 00:08:50]} {[%emt 00:00:03]} 18. f4
{[%clk 00:08:40]} {[%emt 00:00:17]} g6 {[%clk 00:08:30]} {[%emt 00:00:25]} 19.
c3 {[%clk 00:08:23]} {[%emt 00:00:22]} Qf6 {[%clk 00:07:45]} {[%emt 00:00:50]}
20. Rf3 {[%clk 00:07:46]} {[%emt 00:00:42]} Bf5 {[%clk 00:07:06]} {[%emt
00:00:44]} 21. Re2 {[%clk 00:06:57]} {[%emt 00:00:54]} Ba3 {[%clk 00:06:37]}
{[%emt 00:00:34]} 22. h3 {[%clk 00:06:58]} {[%emt 00:00:03]} Be4 {[%clk
00:06:15]} {[%emt 00:00:28]} 23. Rf1 {[%clk 00:06:52]} {[%emt 00:00:11]} Qf5
{[%clk 00:05:22]} {[%emt 00:00:58]} 24. Rd1 {[%clk 00:06:23]} {[%emt 00:00:33]}
Bd6 {[%clk 00:05:00]} {[%emt 00:00:27]} 25. Rf2 {[%clk 00:05:54]} {[%emt
00:00:35]} Re8 {[%clk 00:04:49]} {[%emt 00:00:16]} 26. Kg1 {[%clk 00:05:49]}
{[%emt 00:00:10]} Re7 {[%clk 00:04:29]} {[%emt 00:00:25]} 27. Qg3 {[%clk
00:05:27]} {[%emt 00:00:27]} Bc5 {[%clk 00:04:21]} {[%emt 00:00:13]} 28. c4
{[%clk 00:05:09]} {[%emt 00:00:24]} Bc2 {[%clk 00:03:48]} {[%emt 00:00:38]} 29.
Rc1 {[%clk 00:03:53]} {[%emt 00:01:21]} Bxb3 {[%clk 00:03:40]} {[%emt
00:00:13]} 30. axb3 {[%clk 00:03:55]} {[%emt 00:00:03]} Re2 {[%clk 00:03:17]}
{[%emt 00:00:28]} 31. Rcf1 {[%clk 00:03:43]} {[%emt 00:00:17]} Rxf2 {[%clk
00:03:07]} {[%emt 00:00:16]} 32. Rxf2 {[%clk 00:03:46]} {[%emt 00:00:03]} Qb1+
{[%clk 00:03:05]} {[%emt 00:00:06]} 33. Kh2 {[%clk 00:03:49]} {[%emt 00:00:02]}
Qe1 {[%clk 00:03:02]} {[%emt 00:00:07]} 34. Rf3 {[%clk 00:03:45]} {[%emt
00:00:10]} Qg1 {[%clk 00:03:05]} {[%emt 00:00:02]} 35. Rf2 {[%emt 00:00:06]}
Qe1 0-1

[Event "Kvibergspelen 2018"]
[Site "Prioritet Serneke Arena, Krutvagen 2, Gothenburg, Sweden"]
[Date "2018.04.20"]
[Round "2.20"]
[White "Crevatin, Leo"]
[Black "Sjolander, Anders"]
[Result "1-0"]
[TimeControl "15 minutes + 5 seconds per move from move one (Round 1 - 4) / 90 minutes + 30 seconds per move from move one (Round 5 - 8)"]
[WhiteFideId "1726307"]
[BlackFideId "1711903"]
[WhiteElo "2157"]
[BlackElo "1977"]

1. d4 {[%emt 00:12:55]} d5 2. c4 {[%emt 00:00:01]} Nc6 {[%emt 00:00:02]} 3. Nc3
{[%emt 00:00:01]} dxc4 {[%emt 00:00:01]} 4. Nf3 {[%emt 00:00:02]} Nf6 {[%emt
00:00:19]} 5. e4 {[%emt 00:00:29]} e5 {[%emt 00:00:29]} 6. d5 {[%emt 00:00:14]}
Na5 {[%emt 00:01:31]} 7. Nxe5 {[%emt 00:00:41]} Bd6 {[%emt 00:03:59]} 8. Nxc4
{[%emt 00:00:15]} Nxc4 {[%emt 00:00:04]} 9. Bxc4 {[%emt 00:00:20]} O-O {[%emt
00:00:06]} 10. Be3 {[%emt 00:00:20]} Ng4 {[%emt 00:00:21]} 11. Qe2 {[%emt
00:00:42]} Qe7 {[%emt 00:00:16]} 12. Bd4 {[%emt 00:00:37]} a6 {[%emt 00:00:40]}
13. O-O-O {[%emt 00:00:21]} b5 {[%emt 00:00:02]} 14. Bd3 {[%emt 00:00:02]} Bd7
{[%emt 00:00:49]} 15. g3 {[%emt 00:02:06]} Rfc8 {[%emt 00:00:06]} 16. Bc2
{[%emt 00:01:16]} b4 {[%emt 00:00:40]} 17. Na4 {[%emt 00:00:01]} c5 {[%emt
00:00:54]} 18. dxc6 {[%emt 00:00:41]} Rxc6 {[%emt 00:00:07]} 19. Nb6 {[%emt
00:00:21]} Ra7 {[%emt 00:02:08]} 20. Nd5 {[%emt 00:00:09]} Qe6 {[%emt
00:01:14]} 21. Bxa7 {[%emt 00:00:04]} Rc8 {[%emt 00:00:05]} 22. Kb1 {[%emt
00:00:06]} Bb5 {[%emt 00:00:05]} 23. Qd2 {[%emt 00:00:19]} Ne5 {[%emt
00:00:14]} 24. Nxb4 {[%emt 00:00:24]} Nc4 {[%emt 00:00:08]} 25. Qe1 {[%emt
00:00:44]} Qe7 {[%emt 00:00:03]} 26. Rxd6 {[%emt 00:00:39]} Qxd6 {[%emt
00:00:06]} 27. Nd3 {[%emt 00:00:36]} Qc7 {[%emt 00:00:09]} 28. Bc5 {[%emt
00:00:21]} Rb8 {[%emt 00:01:00]} 29. b3 {[%emt 00:00:48]} Na5 {[%emt 00:00:26]}
30. Qe3 {[%emt 00:00:21]} Rc8 {[%emt 00:00:10]} 31. Rc1 {[%emt 00:00:05]} Nb7
{[%emt 00:00:02]} 32. Bb6 {[%emt 00:00:24]} Qd6 {[%emt 00:00:09]} 33. e5 {[%emt
00:00:22]} Qd5 {[%emt 00:00:11]} 34. Nf4 {[%emt 00:00:38]} Qd7 {[%emt
00:00:13]} 35. e6 {[%emt 00:00:07]} fxe6 {[%emt 00:00:11]} 36. Qxe6+ {[%emt
00:00:01]} Qxe6 {[%emt 00:00:02]} 37. Nxe6 {[%emt 00:00:01]} Rc6 {[%emt
00:00:05]} 38. Be4 {[%emt 00:00:45]} Rxb6 {[%emt 00:00:02]} 39. Bd5 Kf7 {[%emt
00:00:19]} 40. Nd8+ {[%emt 00:00:17]} Ke7 {[%emt 00:00:08]} 41. Nxb7 {[%emt
00:00:04]} Bd3+ {[%emt 00:00:01]} 42. Kb2 {[%emt 00:00:01]} Rf6 {[%emt
00:00:04]} 43. f4 {[%emt 00:00:02]} Bb5 {[%emt 00:00:08]} 44. Rc7+ {[%emt
00:00:11]} Ke8 {[%emt 00:00:05]} 45. Bf7+ {[%emt 00:00:47]} Kf8 {[%emt
00:00:19]} 46. Bc4 {[%emt 00:00:02]} Be8 {[%emt 00:00:09]} 47. Nc5 {[%emt
00:00:05]} Rd6 {[%emt 00:00:01]} 48. Ne6+ {[%emt 00:00:04]} 1-0

[Event "Kvibergspelen 2018"]
[Site "Prioritet Serneke Arena, Krutvagen 2, Gothenburg, Sweden"]
[Date "2018.04.21"]
[Round "3.1"]
[White "Hillarp Persson, Tiger"]
[Black "Ronneland, Daniel"]
[Result "1/2-1/2"]
[TimeControl "15 minutes + 5 seconds per move from move one (Round 1 - 4) / 90 minutes + 30 seconds per move from move one (Round 5 - 8)"]
[WhiteTitle "GM"]
[WhiteFideId "1700812"]
[BlackFideId "1702130"]
[WhiteElo "2540"]
[BlackElo "2201"]

1. Nf3 {[%clk 00:15:07]} {[%emt 00:00:03]} d5 {[%clk 00:15:02]} {[%emt
00:00:07]} 2. g3 {[%clk 00:15:07]} {[%emt 00:00:06]} Nf6 {[%clk 00:14:59]}
{[%emt 00:00:08]} 3. Bg2 {[%clk 00:15:10]} {[%emt 00:00:02]} c6 {[%clk
00:15:00]} {[%emt 00:00:04]} 4. d3 {[%clk 00:14:38]} {[%emt 00:00:37]} h6
{[%clk 00:14:31]} {[%emt 00:00:34]} 5. b3 {[%clk 00:14:00]} {[%emt 00:00:43]}
Bf5 {[%clk 00:14:16]} {[%emt 00:00:20]} 6. Bb2 {[%clk 00:14:04]} {[%emt
00:00:02]} e6 {[%clk 00:14:11]} {[%emt 00:00:10]} 7. Nbd2 {[%clk 00:14:06]}
{[%emt 00:00:03]} Be7 {[%clk 00:13:49]} {[%emt 00:00:26]} 8. O-O {[%clk
00:14:05]} {[%emt 00:00:06]} O-O {[%clk 00:13:46]} {[%emt 00:00:09]} 9. Re1
{[%clk 00:14:08]} {[%emt 00:00:02]} Bh7 {[%clk 00:12:40]} {[%emt 00:01:11]} 10.
e4 {[%clk 00:14:08]} {[%emt 00:00:05]} a5 {[%clk 00:12:19]} {[%emt 00:00:26]}
11. a4 {[%clk 00:13:32]} {[%emt 00:00:42]} Na6 {[%clk 00:12:08]} {[%emt
00:00:16]} 12. e5 {[%clk 00:13:12]} {[%emt 00:00:25]} Nd7 {[%clk 00:12:02]}
{[%emt 00:00:10]} 13. h4 {[%clk 00:13:13]} {[%emt 00:00:04]} b5 {[%clk
00:11:37]} {[%emt 00:00:30]} 14. Nf1 {[%clk 00:12:02]} {[%emt 00:01:16]} bxa4
{[%clk 00:11:27]} {[%emt 00:00:16]} 15. Rxa4 {[%clk 00:11:38]} {[%emt
00:00:28]} Nb4 {[%clk 00:10:47]} {[%emt 00:00:44]} 16. Ne3 {[%clk 00:10:17]}
{[%emt 00:01:27]} Nb6 {[%clk 00:10:43]} {[%emt 00:00:09]} 17. Ra3 {[%clk
00:10:07]} {[%emt 00:00:16]} a4 {[%clk 00:10:04]} {[%emt 00:00:44]} 18. Bc1
{[%clk 00:08:20]} {[%emt 00:01:51]} axb3 {[%clk 00:09:41]} {[%emt 00:00:29]} 19.
Rxb3 {[%clk 00:08:22]} {[%emt 00:00:03]} Ra1 {[%clk 00:08:16]} {[%emt
00:01:30]} 20. Qd2 {[%clk 00:08:25]} {[%emt 00:00:02]} c5 {[%clk 00:06:34]}
{[%emt 00:01:48]} 21. Ba3 {[%clk 00:07:27]} {[%emt 00:01:03]} Rxe1+ {[%clk
00:06:30]} {[%emt 00:00:09]} 22. Qxe1 {[%clk 00:07:08]} {[%emt 00:00:23]} d4
{[%clk 00:06:14]} {[%emt 00:00:20]} 23. Bxb4 {[%clk 00:07:06]} {[%emt
00:00:08]} cxb4 {[%clk 00:05:51]} {[%emt 00:00:29]} 24. Nf1 {[%clk 00:06:36]}
{[%emt 00:00:35]} Qd7 {[%clk 00:05:30]} {[%emt 00:00:26]} 25. Rxb4 {[%clk
00:06:15]} {[%emt 00:00:26]} Bxb4 {[%clk 00:05:24]} {[%emt 00:00:11]} 26. Qxb4
{[%clk 00:06:19]} {[%emt 00:00:01]} Nd5 {[%clk 00:05:05]} {[%emt 00:00:23]} 27.
Qxd4 {[%clk 00:06:18]} {[%emt 00:00:06]} Qc7 {[%clk 00:04:53]} {[%emt
00:00:16]} 28. Ne1 {[%clk 00:03:27]} {[%emt 00:02:57]} Qc3 {[%clk 00:04:56]}
{[%emt 00:00:02]} 29. Qxc3 {[%clk 00:03:21]} {[%emt 00:00:11]} Nxc3 {[%clk
00:05:00]} {[%emt 00:00:01]} 30. f4 {[%clk 00:03:09]} {[%emt 00:00:17]} Rb8
{[%clk 00:04:34]} {[%emt 00:00:31]} 31. Kf2 {[%clk 00:03:11]} {[%emt 00:00:03]}
Rb1 {[%clk 00:03:58]} {[%emt 00:00:41]} 32. Ne3 {[%clk 00:03:05]} {[%emt
00:00:11]} h5 {[%clk 00:03:27]} {[%emt 00:00:37]} 33. Nf3 {[%clk 00:02:48]}
{[%emt 00:00:22]} Kf8 {[%clk 00:02:58]} {[%emt 00:00:34]} 34. Nd4 {[%clk
00:02:38]} {[%emt 00:00:14]} Ke7 {[%clk 00:02:53]} {[%emt 00:00:10]} 35. Bf3
{[%clk 00:02:18]} {[%emt 00:00:25]} Bg6 {[%clk 00:02:24]} {[%emt 00:00:34]} 36.
Ne2 {[%clk 00:01:18]} {[%emt 00:01:05]} Nb5 {[%clk 00:01:31]} {[%emt 00:00:58]}
37. c4 {[%clk 00:00:43]} {[%emt 00:00:40]} Na3 {[%clk 00:01:33]} {[%emt
00:00:02]} 38. d4 {[%clk 00:00:45]} {[%emt 00:00:03]} Bd3 {[%clk 00:01:30]}
{[%emt 00:00:07]} 39. d5 {[%clk 00:00:43]} {[%emt 00:00:08]} Bxc4 {[%clk
00:01:17]} {[%emt 00:00:19]} 40. d6+ {[%clk 00:00:43]} {[%emt 00:00:04]} Kd7
{[%clk 00:01:21]} {[%emt 00:00:01]} 41. Bxh5 {[%clk 00:00:45]} {[%emt
00:00:03]} g6 {[%clk 00:01:23]} {[%emt 00:00:03]} 42. Bf3 {[%clk 00:00:37]}
{[%emt 00:00:13]} Rb2 {[%clk 00:01:22]} {[%emt 00:00:05]} 43. Nxc4 {[%clk
00:00:39]} {[%emt 00:00:03]} Nxc4 {[%clk 00:01:26]} {[%emt 00:00:02]} 44. h5
{[%clk 00:00:42]} {[%emt 00:00:02]} gxh5 {[%clk 00:01:25]} {[%emt 00:00:06]} 45.
Bxh5 {[%clk 00:00:45]} {[%emt 00:00:01]} Nxd6 {[%clk 00:01:12]} {[%emt
00:00:17]} 46. exd6 {[%clk 00:00:49]} {[%emt 00:00:02]} f5 {[%clk 00:01:15]}
{[%emt 00:00:03]} 47. Ke3 {[%clk 00:00:36]} {[%emt 00:00:18]} Kxd6 {[%clk
00:01:17]} {[%emt 00:00:02]} 48. Nd4 {[%clk 00:00:39]} {[%emt 00:00:02]} Ke7
{[%clk 00:01:16]} {[%emt 00:00:06]} 49. Be2 {[%clk 00:00:40]} {[%emt 00:00:04]}
Kf6 {[%clk 00:01:18]} {[%emt 00:00:03]} 50. Bc4 {[%clk 00:00:40]} {[%emt
00:00:05]} Rb6 {[%clk 00:00:53]} {[%emt 00:00:29]} 51. Nxe6 {[%clk 00:00:10]}
{[%emt 00:00:35]} Rxe6+ {[%clk 00:00:40]} {[%emt 00:00:18]} 52. Bxe6 {[%clk
00:00:14]} {[%emt 00:00:01]} Kxe6 {[%clk 00:00:44]} 53. Kf3 {[%clk 00:00:18]}
Kf6 {[%clk 00:00:43]} {[%emt 00:00:07]} 54. Ke2 {[%clk 00:00:21]} {[%emt
00:00:02]} Ke6 {[%clk 00:00:39]} {[%emt 00:00:09]} 55. Ke3 {[%clk 00:00:23]}
{[%emt 00:00:02]} Ke7 {[%clk 00:00:27]} {[%emt 00:00:17]} 56. Kf2 {[%clk
00:00:19]} {[%emt 00:00:09]} Kf6 {[%clk 00:00:29]} {[%emt 00:00:03]} 57. Kf3
{[%clk 00:00:23]} Kf7 {[%clk 00:00:27]} {[%emt 00:00:07]} 58. Ke3 {[%clk
00:00:14]} {[%emt 00:00:13]} Ke6 {[%clk 00:00:30]} {[%emt 00:00:02]} 59. Kd4
{[%clk 00:00:18]} {[%emt 00:00:01]} Kd6 {[%clk 00:00:34]} 60. Kc4 {[%clk
00:00:22]} {[%emt 00:00:02]} Kc6 {[%clk 00:00:38]} {[%emt 00:00:01]} 61. Kd4
{[%clk 00:00:11]} {[%emt 00:00:16]} Kd6 {[%clk 00:00:42]} {[%emt 00:00:01]} 62.
Ke3 {[%clk 00:00:08]} {[%emt 00:00:07]} Ke6 {[%clk 00:00:46]} {[%emt 00:00:02]}
63. Kf3 {[%clk 00:00:10]} {[%emt 00:00:03]} Kf7 {[%clk 00:00:46]} {[%emt
00:00:05]} 64. Kg2 {[%clk 00:00:14]} Kg6 {[%clk 00:00:46]} {[%emt 00:00:06]} 65.
Kg1 {[%clk 00:00:16]} {[%emt 00:00:02]} Kf6 {[%clk 00:00:47]} {[%emt 00:00:05]}
66. Kf2 {[%clk 00:00:20]} {[%emt 00:00:01]} Ke6 {[%clk 00:00:47]} {[%emt
00:00:05]} 67. Ke3 {[%clk 00:00:20]} {[%emt 00:00:05]} Ke7 {[%clk 00:00:48]}
{[%emt 00:00:03]} 68. Kd4 {[%clk 00:00:20]} {[%emt 00:00:05]} Kd6 {[%clk
00:00:53]} 69. Ke3 {[%clk 00:00:15]} {[%emt 00:00:10]} Ke6 {[%clk 00:00:57]}
{[%emt 00:00:01]} 70. Kf3 {[%clk 00:00:18]} {[%emt 00:00:01]} Kf7 {[%clk
00:01:00]} {[%emt 00:00:01]} 71. g4 {[%clk 00:00:22]} {[%emt 00:00:01]} fxg4+
{[%clk 00:01:04]} {[%emt 00:00:01]} 72. Kxg4 {[%clk 00:00:26]} Kg6 {[%clk
00:01:08]} {[%emt 00:00:01]} 73. f5+ {[%emt 00:00:08]} 1/2-1/2